fUSD/lending_fUSD_20241224
["ID","MTS","AMOUNT","RATE_DAILY","PERIOD"]
[346490418,1735007450254,-500.0,0.00013972,2]
[346490421,1735007450264,-775.03,0.00013972,2]
[346490422,1735007450274,-16031.61,0.00013972,2]
[346490424,1735007450283,-500.0,0.00013972,2]
[346490426,1735007450293,-2600.82,0.00013972,2]
[346490429,1735007450303,-1530.64,0.00013972,2]
[346490430,1735007450312,-1498.97,0.00013972,2]
[346490432,1735007450321,-1261.14,0.00013972,2]
[346490434,1735007450330,-980.94,0.00013972,2]
[346490436,1735007450342,-687.04,0.00013972,2]
[346490438,1735007450352,-835.46,0.00013972,2]
[346490440,1735007450361,-746.28,0.00013972,2]
[346490442,1735007450371,-200.0,0.00013973,2]
[346490444,1735007450380,-275.74411363,0.00014,2]
[346490446,1735007450389,-151.0,0.00014046,2]
[346490448,1735007450403,-495214.2622634,0.00014046,2]
[346490450,1735007450415,-5694.64021943,0.00014055,2]
[346490452,1735007450424,-200.0,0.00014113,2]
[346490454,1735007450434,-2000.0,0.00014132,2]
[346490456,1735007450445,-500.0,0.00014132,2]
[346490458,1735007450453,-200.0,0.00014132,2]
[346490460,1735007450463,-172.18196126,0.00014146,2]
[346490462,1735007450473,-5694.64021943,0.00014207,2]
[346490464,1735007450483,-799.0,0.00014219,2]
[346490466,1735007450493,-1495.0,0.00014219,2]
[346490468,1735007450503,-542.88521461,0.00014236,2]
[346490470,1735007450513,-500.0,0.00014245,2]
[346490472,1735007450522,-500.0,0.00014245,2]
[346490474,1735007450531,-500.0,0.00014245,2]
[346490476,1735007450541,-500.0,0.00014245,2]
[346490478,1735007450550,-500.0,0.00014245,2]
[346490480,1735007450560,-500.0,0.00014245,2]
[346490482,1735007450570,-500.0,0.00014245,2]
[346490484,1735007450579,-500.0,0.00014245,2]
[346490486,1735007450589,-500.0,0.00014246,2]
[346490488,1735007450599,-500.0,0.00014246,2]
[346490490,1735007450610,-618.88,0.00014246,2]
[346490492,1735007450620,-500.0,0.00014246,2]
[346490494,1735007450630,-500.0,0.00014246,2]
[346490496,1735007450640,-500.0,0.00014246,2]
[346490498,1735007450650,-616.73,0.00014246,2]
[346490500,1735007450659,-500.0,0.00014246,2]
[346490502,1735007450669,-652.108415,0.00014246,2]
[346490504,1735007450678,-500.0,0.00014246,2]
[346490506,1735007450687,-546.46,0.00014246,2]
[346490508,1735007450697,-687.91,0.00014246,2]
[346490510,1735007450707,-500.0,0.00014246,2]
[346490512,1735007450717,-644.092414,0.00014246,2]
[346490514,1735007450726,-500.0,0.00014246,2]
[346490516,1735007450736,-500.0,0.00014246,2]
[346490518,1735007450746,-500.0,0.00014246,2]
[346490520,1735007450756,-546.67,0.00014246,2]
[346490522,1735007450767,-500.0,0.00014246,2]
[346490524,1735007450777,-553.98,0.00014246,2]
[346490526,1735007450786,-597.92,0.00014246,2]
[346490528,1735007450795,-500.0,0.00014246,2]
[346490530,1735007450805,-500.0,0.00014246,2]
[346490532,1735007450814,-593.7,0.00014246,2]
[346490534,1735007450825,-500.0,0.00014246,2]
[346490536,1735007450834,-500.0,0.00014246,2]
[346490538,1735007450844,-500.0,0.00014246,2]
[346490540,1735007450853,-500.0,0.00014246,2]
[346490542,1735007450862,-735.6,0.00014246,2]
[346490544,1735007450873,-500.0,0.00014246,2]
[346490546,1735007450883,-588.07,0.00014246,2]
[346490548,1735007450892,-500.0,0.00014246,2]
[346490550,1735007450902,-500.0,0.00014246,2]
[346490552,1735007450912,-500.0,0.00014246,2]
[346490554,1735007450922,-500.0,0.00014246,2]
[346490556,1735007450931,-534.44,0.00014246,2]
[346490558,1735007450941,-500.0,0.00014246,2]
[346490560,1735007450951,-235.91255408,0.00014246,2]
[346490562,1735007450960,-573.35,0.00014246,2]
[346490564,1735007450969,-500.0,0.00014246,2]
[346490566,1735007450979,-500.0,0.00014246,2]
[346490568,1735007450989,-500.0,0.00014246,2]
[346490570,1735007450999,-500.0,0.00014246,2]
[346490572,1735007451008,-500.0,0.00014246,2]
[346490574,1735007451017,-500.0,0.00014246,2]
[346490576,1735007451026,-500.0,0.00014246,2]
[346490577,1735007451036,-500.0,0.00014246,2]
[346490579,1735007451045,-647.46,0.00014246,2]
[346490582,1735007451055,-500.0,0.00014246,2]
[346490584,1735007451065,-500.0,0.00014246,2]
[346490585,1735007451074,-500.0,0.00014246,2]
[346490587,1735007451083,-500.0,0.00014246,2]
[346490589,1735007451093,-500.0,0.00014246,2]
[346490591,1735007451102,-725.47,0.00014246,2]
[346490593,1735007451111,-500.0,0.00014246,2]
[346490595,1735007451121,-500.0,0.00014246,2]
[346490597,1735007451130,-500.0,0.00014246,2]
[346490599,1735007451139,-500.0,0.00014246,2]
[346490601,1735007451149,-738.64,0.00014246,2]
[346490603,1735007451158,-500.0,0.00014246,2]
[346490606,1735007451168,-500.0,0.00014246,2]
[346490608,1735007451177,-783.25,0.00014246,2]
[346490610,1735007451186,-500.0,0.00014246,2]
[346490612,1735007451196,-500.0,0.00014246,2]
[346490614,1735007451205,-689.83,0.00014246,2]
[346490615,1735007451214,-500.0,0.00014246,2]
[346490617,1735007451223,-500.0,0.00014246,2]
[346490620,1735007451234,-553.21,0.00014246,2]
[346490622,1735007451244,-652.3,0.00014246,2]
[346490624,1735007451253,-500.0,0.00014246,2]
[346490626,1735007451263,-500.0,0.00014246,2]
[346490628,1735007451272,-1683.36,0.00014246,2]
[346490630,1735007451282,-500.0,0.00014246,2]
[346490632,1735007451291,-500.0,0.00014246,2]
[346490634,1735007451300,-579.52,0.00014246,2]
[346490635,1735007451310,-622.4,0.00014246,2]
[346490637,1735007451319,-735.01,0.00014246,2]
[346490640,1735007451328,-717.05,0.00014246,2]
[346490642,1735007451337,-756.85,0.00014246,2]
[346490643,1735007451347,-615.06,0.00014246,2]
[346490645,1735007451356,-768.22,0.00014246,2]
[346490648,1735007451365,-500.0,0.00014246,2]
[346490649,1735007451375,-500.0,0.00014246,2]
[346490651,1735007451384,-500.0,0.00014246,2]
[346490653,1735007451394,-1363.94,0.00014246,2]
[346490656,1735007451412,-500.0,0.00014246,2]
[346490657,1735007451421,-500.0,0.00014246,2]
[346490659,1735007451430,-634.43,0.00014246,2]
[346490661,1735007451439,-500.0,0.00014246,2]
[346490663,1735007451450,-1192.57,0.00014246,2]
[346490665,1735007451459,-500.0,0.00014246,2]
[346490667,1735007451468,-500.0,0.00014246,2]
[346490669,1735007451478,-1089.65,0.00014246,2]
[346490670,1735007451489,-500.0,0.00014246,2]
[346490671,1735007451498,-500.0,0.00014246,2]
[346490672,1735007451508,-500.0,0.00014246,2]
[346490673,1735007451517,-1043.27,0.00014246,2]
[346490674,1735007451526,-500.0,0.00014246,2]
[346490675,1735007451536,-500.0,0.00014246,2]
[346490676,1735007451546,-500.0,0.00014246,2]
[346490677,1735007451555,-500.0,0.00014246,2]
[346490678,1735007451565,-500.0,0.00014246,2]
[346490679,1735007451574,-500.0,0.00014246,2]
[346490680,1735007451583,-500.0,0.00014246,2]
[346490681,1735007451593,-500.0,0.00014246,2]
[346490682,1735007451603,-500.0,0.00014246,2]
[346490683,1735007451613,-500.0,0.00014246,2]
[346490684,1735007451622,-693.79,0.00014246,2]
[346490685,1735007451631,-1426.47,0.00014246,2]
[346490686,1735007451640,-592.95,0.00014246,2]
[346490687,1735007451650,-500.0,0.00014246,2]
[346490688,1735007451659,-500.0,0.00014246,2]
[346490689,1735007451668,-1061.26,0.00014246,2]
[346490690,1735007451678,-868.59,0.00014246,2]
[346490691,1735007451687,-500.0,0.00014246,2]
[346490692,1735007451697,-500.0,0.00014246,2]
[346490693,1735007451707,-821.96,0.00014246,2]
[346490694,1735007451716,-678.27,0.00014246,2]
[346490695,1735007451726,-558.93,0.00014246,2]
[346490696,1735007451736,-500.0,0.00014246,2]
[346490697,1735007451746,-500.0,0.00014246,2]
[346490698,1735007451755,-274.95202856,0.00014246,2]
[346490699,1735007451765,-500.0,0.00014246,2]
[346490700,1735007451775,-500.0,0.00014246,2]
[346490701,1735007451784,-500.0,0.00014246,2]
[346490702,1735007451793,-598.82,0.00014246,2]
[346490703,1735007451803,-500.0,0.00014246,2]
[346490704,1735007451812,-535.47,0.00014246,2]
[346490705,1735007451822,-500.0,0.00014246,2]
[346490706,1735007451831,-500.0,0.00014246,2]
[346490707,1735007451840,-1017.52,0.00014246,2]
[346490708,1735007451850,-1099.52,0.00014246,2]
[346490709,1735007451859,-569.88,0.00014246,2]
[346490710,1735007451868,-1266.75,0.00014246,2]
[346490711,1735007451877,-500.0,0.00014246,2]
[346490713,1735007451887,-500.0,0.00014246,2]
[346490715,1735007451896,-500.0,0.00014246,2]
[346490717,1735007451905,-894.34,0.00014246,2]
[346490719,1735007451915,-1090.38,0.00014246,2]
[346490721,1735007451924,-500.0,0.00014246,2]
[346490722,1735007451935,-500.0,0.00014246,2]
[346490723,1735007451944,-1064.1,0.00014246,2]
[346490724,1735007451954,-667.83,0.00014246,2]
[346490725,1735007451963,-634.11,0.00014246,2]
[346490726,1735007451972,-500.0,0.00014246,2]
[346490727,1735007451981,-500.0,0.00014246,2]
[346490728,1735007451991,-848.75,0.00014246,2]
[346490729,1735007452001,-593.38,0.00014246,2]
[346490730,1735007452010,-500.0,0.00014246,2]
[346490731,1735007452019,-617.7,0.00014246,2]
[346490732,1735007452028,-1042.67,0.00014246,2]
[346490733,1735007452037,-592.82,0.00014246,2]
[346490734,1735007452047,-622.81,0.00014246,2]
[346490735,1735007452056,-553.18,0.00014246,2]
[346490736,1735007452065,-500.0,0.00014246,2]
[346490737,1735007452074,-500.0,0.00014246,2]
[346490738,1735007452083,-500.0,0.00014246,2]
[346490739,1735007452092,-904.21,0.00014246,2]
[346490740,1735007452102,-614.04,0.00014246,2]
[346490741,1735007452111,-500.0,0.00014246,2]
[346490742,1735007452121,-500.0,0.00014246,2]
[346490743,1735007452130,-500.0,0.00014246,2]
[346490744,1735007452140,-500.0,0.00014246,2]
[346490745,1735007452149,-500.0,0.00014246,2]
[346490746,1735007452159,-500.0,0.00014246,2]
[346490747,1735007452168,-660.73,0.00014246,2]
[346490748,1735007452178,-500.0,0.00014246,2]
[346490749,1735007452187,-668.21,0.00014246,2]
[346490750,1735007452196,-500.0,0.00014246,2]
[346490751,1735007452206,-500.0,0.00014246,2]
[346490752,1735007452215,-669.58,0.00014246,2]
[346490753,1735007452224,-500.0,0.00014246,2]
[346490754,1735007452235,-1545.62,0.00014246,2]
[346490755,1735007452244,-500.0,0.00014246,2]
[346490756,1735007452253,-994.78,0.00014246,2]
[346490757,1735007452262,-814.77,0.00014246,2]
[346490758,1735007452272,-1452.44,0.00014246,2]
[346490759,1735007452281,-512.20586669,0.00014246,2]
[346490760,1735007452291,-500.0,0.00014246,2]
[346490761,1735007452301,-500.0,0.00014246,2]
[346490762,1735007452311,-600.04,0.00014246,2]
[346490763,1735007452320,-500.0,0.00014246,2]
[346490764,1735007452330,-500.0,0.00014246,2]
[346490765,1735007452339,-1120.06,0.00014246,2]
[346490766,1735007452348,-994.95,0.00014246,2]
[346490767,1735007452358,-684.05,0.00014246,2]
[346490768,1735007452368,-500.0,0.00014246,2]
[346490769,1735007452377,-500.0,0.00014246,2]
[346490771,1735007452387,-795.23,0.00014246,2]
[346490772,1735007452399,-450.89329844,0.00014246,2]
[346490773,1735007452408,-825.42,0.00014246,2]
[346490774,1735007452418,-1267.91,0.00014246,2]
[346490775,1735007452427,-500.0,0.00014246,2]
[346490776,1735007452436,-1564.05,0.00014246,2]
[346490778,1735007452446,-500.0,0.00014246,2]
[346490780,1735007452455,-1598.3,0.00014246,2]
[346490782,1735007452464,-500.0,0.00014246,2]
[346490784,1735007452475,-606.72,0.00014246,2]
[346490786,1735007452487,-581.65,0.00014246,2]
[346490788,1735007452496,-1196.67,0.00014246,2]
[346490790,1735007452505,-1141.42,0.00014246,2]
[346490792,1735007452514,-629.93,0.00014246,2]
[346490794,1735007452523,-1273.09,0.00014246,2]
[346490796,1735007452533,-744.09,0.00014246,2]
[346490798,1735007452542,-500.0,0.00014246,2]
[346490800,1735007452552,-500.0,0.00014246,2]
[346490802,1735007452561,-500.0,0.00014246,2]
[346490804,1735007452570,-500.0,0.00014246,2]
[346490806,1735007452580,-881.38,0.00014246,2]
[346490808,1735007452589,-844.67,0.00014246,2]
[346490810,1735007452599,-500.0,0.00014246,2]
[346490812,1735007452608,-500.0,0.00014246,2]
[346490814,1735007452618,-967.85,0.00014246,2]
[346490816,1735007452627,-624.54,0.00014246,2]
[346490818,1735007452637,-500.0,0.00014246,2]
[346490820,1735007452646,-500.0,0.00014246,2]
[346490822,1735007452656,-870.59,0.00014246,2]
[346490824,1735007452666,-743.33,0.00014246,2]
[346490826,1735007452675,-500.0,0.00014246,2]
[346490828,1735007452684,-500.0,0.00014246,2]
[346490830,1735007452694,-619.7,0.00014246,2]
[346490832,1735007452704,-500.0,0.00014246,2]
[346490834,1735007452713,-589.61,0.00014246,2]
[346490836,1735007452723,-500.0,0.00014246,2]
[346490838,1735007452733,-500.0,0.00014246,2]
[346490840,1735007452746,-500.0,0.00014246,2]
[346490842,1735007452755,-500.0,0.00014246,2]
[346490844,1735007452765,-663.65,0.00014246,2]
[346490846,1735007452774,-846.64,0.00014246,2]
[346490848,1735007452784,-500.0,0.00014246,2]
[346490850,1735007452794,-639.58531099,0.00014246,2]
[346490852,1735007452804,-822.38,0.00014246,2]
[346490854,1735007452814,-545.12,0.00014246,2]
[346490856,1735007452823,-500.0,0.00014246,2]
[346490858,1735007452833,-857.8,0.00014246,2]
[346490860,1735007452842,-500.0,0.00014246,2]
[346490862,1735007452852,-628.91,0.00014246,2]
[346490864,1735007452862,-500.03,0.00014246,2]
[346490866,1735007452871,-500.0,0.00014246,2]
[346490868,1735007452880,-486.88356486,0.00014246,2]
[346490870,1735007452890,-578.3,0.00014246,2]
[346490872,1735007452901,-664.63,0.00014246,2]
[346490874,1735007452911,-500.0,0.00014246,2]
[346490876,1735007452921,-560.21,0.00014246,2]
[346490878,1735007452931,-500.0,0.00014246,2]
[346490880,1735007452940,-1621.52,0.00014246,2]
[346490882,1735007452950,-500.0,0.00014246,2]
[346490884,1735007452960,-618.84,0.00014246,2]
[346490886,1735007452969,-500.0,0.00014246,2]
[346490888,1735007452979,-811.41,0.00014246,2]
[346490890,1735007452991,-831.51,0.00014246,2]
[346490891,1735007453002,-862.2,0.00014246,2]
[346490896,1735007453130,-500.0,0.00014246,2]
[346490898,1735007453140,-500.0,0.00014246,2]
[346490900,1735007453150,-500.0,0.00014246,2]
[346490902,1735007453159,-840.98,0.00014246,2]
[346490904,1735007453169,-500.0,0.00014246,2]
[346490906,1735007453179,-710.37,0.00014246,2]
[346490909,1735007453188,-500.0,0.00014246,2]
[346490910,1735007453198,-511.09,0.00014246,2]
[346490913,1735007453208,-500.0,0.00014246,2]
[346490915,1735007453218,-1144.42,0.00014246,2]
[346490917,1735007453227,-500.0,0.00014246,2]
[346490918,1735007453238,-500.0,0.00014246,2]
[346490920,1735007453248,-675.71,0.00014246,2]
[346490922,1735007453257,-1450.49,0.00014246,2]
[346490924,1735007453266,-915.2,0.00014246,2]
[346490927,1735007453275,-521.96,0.00014246,2]
[346490929,1735007453285,-608.78,0.00014246,2]
[346490931,1735007453294,-652.93,0.00014246,2]
[346490933,1735007453304,-759.0,0.00014246,2]
[346490935,1735007453313,-583.2,0.00014246,2]
[346490937,1735007453322,-679.37,0.00014246,2]
[346490939,1735007453331,-569.4,0.00014246,2]
[346490941,1735007453340,-693.77,0.00014246,2]
[346490943,1735007453350,-701.37,0.00014246,2]
[346490944,1735007453359,-500.0,0.00014246,2]
[346490946,1735007453368,-1679.98,0.00014246,2]
[346490948,1735007453377,-500.0,0.00014246,2]
[346490951,1735007453387,-502.12,0.00014246,2]
[346490952,1735007453397,-524.76,0.00014246,2]
[346490955,1735007453410,-500.0,0.00014246,2]
[346490957,1735007453419,-1154.4,0.00014246,2]
[346490959,1735007453429,-709.56,0.00014246,2]
[346490960,1735007453438,-500.0,0.00014246,2]
[346490963,1735007453449,-1301.45,0.00014246,2]
[346490965,1735007453459,-500.0,0.00014246,2]
[346490967,1735007453469,-500.0,0.00014246,2]
[346490969,1735007453480,-500.0,0.00014246,2]
[346490971,1735007453492,-611.77,0.00014246,2]
[346490973,1735007453502,-963.98,0.00014246,2]
[346490975,1735007453512,-7171.2,0.00014246,2]
[346490977,1735007453522,-710.65,0.00014246,2]
[346490979,1735007453531,-618.56,0.00014246,2]
[346490981,1735007453541,-500.0,0.00014246,2]
[346490983,1735007453551,-500.0,0.00014246,2]
[346490985,1735007453561,-500.0,0.00014246,2]
[346490986,1735007453571,-726.77,0.00014246,2]
[346490989,1735007453580,-500.0,0.00014246,2]
[346490991,1735007453590,-500.0,0.00014246,2]
[346490992,1735007453600,-669.37,0.00014246,2]
[346490995,1735007453610,-500.0,0.00014246,2]
[346490997,1735007453619,-500.0,0.00014246,2]
[346490999,1735007453628,-500.0,0.00014246,2]
[346491001,1735007453637,-1646.6,0.00014246,2]
[346491003,1735007453646,-768.51,0.00014246,2]
[346491005,1735007453656,-954.73,0.00014246,2]
[346491006,1735007453665,-7137.83,0.00014246,2]
[346491008,1735007453674,-501.32,0.00014246,2]
[346491011,1735007453684,-500.0,0.00014246,2]
[346491013,1735007453693,-790.41,0.00014246,2]
[346491015,1735007453702,-1709.11,0.00014246,2]
[346491017,1735007453712,-899.06,0.00014246,2]
[346491019,1735007453722,-1723.42,0.00014246,2]
[346491021,1735007453731,-630.14,0.00014246,2]
[346491023,1735007453742,-500.0,0.00014246,2]
[346491025,1735007453751,-2292.47,0.00014246,2]
[346491027,1735007453760,-521.93,0.00014246,2]
[346491029,1735007453770,-500.0,0.00014246,2]
[346491031,1735007453779,-500.0,0.00014246,2]
[346491033,1735007453788,-4440.78,0.00014246,2]
[346491035,1735007453800,-1044.76,0.00014246,2]
[346491037,1735007453809,-150.0,0.00014246,2]
[346491039,1735007453819,-500.0,0.00014246,2]
[346491041,1735007453828,-150.17299784,0.00014246,2]
[346491043,1735007453837,-4785.48,0.00014246,2]
[346491045,1735007453846,-821.86,0.00014246,2]
[346491047,1735007453855,-1038.34,0.00014246,2]
[346491049,1735007453864,-500.0,0.00014246,2]
[346491051,1735007453873,-620.5,0.00014246,2]
[346491053,1735007453882,-1762.88,0.00014246,2]
[346491055,1735007453892,-532.46,0.00014246,2]
[346491057,1735007453901,-500.0,0.00014246,2]
[346491059,1735007453910,-3288.82,0.00014246,2]
[346491061,1735007453919,-1236.75,0.00014246,2]
[346491063,1735007453928,-500.0,0.00014246,2]
[346491065,1735007453937,-7839.9,0.00014246,2]
[346491067,1735007453946,-720.23,0.00014246,2]
[346491069,1735007453956,-500.0,0.00014246,2]
[346491071,1735007453966,-996.23,0.00014246,2]
[346491073,1735007453975,-727.08,0.00014246,2]
[346491075,1735007453985,-500.0,0.00014246,2]
[346491077,1735007453994,-770.83,0.00014246,2]
[346491079,1735007454004,-500.0,0.00014246,2]
[346491081,1735007454013,-1040.44,0.00014246,2]
[346491083,1735007454023,-3105.17,0.00014246,2]
[346491085,1735007454032,-3382.29,0.00014246,2]
[346491087,1735007454041,-685.18,0.00014246,2]
[346491089,1735007454050,-500.0,0.00014246,2]
[346491091,1735007454059,-718.55,0.00014246,2]
[346491093,1735007454069,-1300.07,0.00014246,2]
[346491095,1735007454078,-500.0,0.00014246,2]
[346491097,1735007454087,-500.0,0.00014246,2]
[346491099,1735007454096,-2175.65,0.00014246,2]
[346491101,1735007454105,-1337.16,0.00014246,2]
[346491103,1735007454115,-547.29,0.00014246,2]
[346491105,1735007454123,-1260.32,0.00014246,2]
[346491107,1735007454132,-1186.31,0.00014246,2]
[346491109,1735007454141,-703.31,0.00014246,2]
[346491111,1735007454150,-790.65,0.00014246,2]
[346491113,1735007454159,-2693.62,0.00014246,2]
[346491115,1735007454168,-2195.68,0.00014246,2]
[346491117,1735007454177,-500.0,0.00014246,2]
[346491119,1735007454187,-2599.99,0.00014246,2]
[346491121,1735007454195,-500.0,0.00014246,2]
[346491123,1735007454204,-5027.26,0.00014246,2]
[346491125,1735007454214,-500.0,0.00014246,2]
[346491127,1735007454223,-464.61093282,0.00014246,2]
[346491129,1735007454234,-18698.72,0.00014246,2]
[346491131,1735007454243,-970.77,0.00014246,2]
[346491133,1735007454252,-1181.22,0.00014246,2]
[346491135,1735007454261,-505.86,0.00014246,2]
[346491137,1735007454271,-506.9,0.00014246,2]
[346491139,1735007454279,-500.0,0.00014246,2]
[346491141,1735007454289,-500.0,0.00014246,2]
[346491143,1735007454298,-776.44,0.00014246,2]
[346491145,1735007454307,-818.27,0.00014246,2]
[346491147,1735007454316,-644.59,0.00014246,2]
[346491149,1735007454325,-1647.02,0.00014246,2]
[346491151,1735007454334,-500.0,0.00014246,2]
[346491153,1735007454343,-992.28,0.00014246,2]
[346491155,1735007454353,-4092.33,0.00014246,2]
[346491157,1735007454362,-976.56,0.00014246,2]
[346491159,1735007454371,-1979.42,0.00014246,2]
[346491161,1735007454381,-2148.61,0.00014246,2]
[346491163,1735007454390,-919.1,0.00014246,2]
[346491165,1735007454404,-1423.24,0.00014246,2]
[346491167,1735007454415,-500.0,0.00014246,2]
[346491169,1735007454424,-1852.35,0.00014246,2]
[346491171,1735007454433,-652.86,0.00014246,2]
[346491173,1735007454443,-705.61,0.00014246,2]
[346491174,1735007454452,-1677.16,0.00014246,2]
[346491175,1735007454461,-774.41,0.00014246,2]
[346491176,1735007454470,-1360.94,0.00014246,2]
[346491177,1735007454480,-500.0,0.00014246,2]
[346491178,1735007454489,-5795.29,0.00014246,2]
[346491179,1735007454498,-3363.54,0.00014246,2]
[346491180,1735007454507,-1300.57,0.00014246,2]
[346491181,1735007454517,-1505.26,0.00014246,2]
[346491182,1735007454526,-1701.58,0.00014246,2]
[346491184,1735007454535,-600.17,0.00014246,2]
[346491186,1735007454544,-1373.23,0.00014246,2]
[346491187,1735007454553,-500.0,0.00014246,2]
[346491189,1735007454563,-601.28,0.00014246,2]
[346491191,1735007454572,-1001.08,0.00014246,2]
[346491193,1735007454582,-1121.55,0.00014246,2]
[346491195,1735007454592,-10929.52,0.00014246,2]
[346491197,1735007454601,-1558.76,0.00014246,2]
[346491200,1735007454611,-2563.46,0.00014246,2]
[346491202,1735007454620,-2226.51,0.00014246,2]
[346491204,1735007454630,-500.0,0.00014246,2]
[346491206,1735007454639,-950.58,0.00014246,2]
[346491208,1735007454649,-4072.19,0.00014246,2]
[346491209,1735007454659,-1166.78,0.00014246,2]
[346491211,1735007454670,-898.08,0.00014246,2]
[346491213,1735007454680,-500.0,0.00014246,2]
[346491215,1735007454690,-600.61,0.00014246,2]
[346491217,1735007454699,-1152.46,0.00014246,2]
[346491220,1735007454708,-2232.16,0.00014246,2]
[346491221,1735007454717,-4521.11,0.00014246,2]
[346491224,1735007454727,-500.0,0.00014246,2]
[346491226,1735007454738,-767.98,0.00014246,2]
[346491228,1735007454747,-631.49,0.00014246,2]
[346491230,1735007454757,-4342.25,0.00014246,2]
[346491231,1735007454766,-1702.78,0.00014246,2]
[346491233,1735007454776,-729.56,0.00014246,2]
[346491235,1735007454786,-4520.53,0.00014246,2]
[346491237,1735007454795,-500.0,0.00014246,2]
[346491240,1735007454804,-12876.12,0.00014246,2]
[346491242,1735007454813,-963.49,0.00014246,2]
[346491244,1735007454823,-10210.08,0.00014246,2]
[346491246,1735007454832,-795.43,0.00014246,2]
[346491247,1735007454844,-500.0,0.00014246,2]
[346491249,1735007454853,-500.0,0.00014246,2]
[346491251,1735007454863,-1219.46,0.00014246,2]
[346491253,1735007454873,-1923.15,0.00014246,2]
[346491256,1735007454882,-2209.69,0.00014246,2]
[346491258,1735007454892,-150.0,0.00014246,2]
[346491259,1735007454901,-2586.86,0.00014246,2]
[346491262,1735007454910,-150.22332799,0.00014246,2]
[346491264,1735007454919,-707.35,0.00014246,2]
[346491265,1735007454929,-3929.42,0.00014246,2]
[346491267,1735007454938,-1741.33,0.00014246,2]
[346491269,1735007454947,-500.0,0.00014246,2]
[346491271,1735007454956,-833.25,0.00014246,2]
[346491274,1735007454965,-1443.18,0.00014246,2]
[346491276,1735007454975,-500.0,0.00014246,2]
[346491278,1735007454984,-1311.55,0.00014246,2]
[346491280,1735007454994,-1736.83,0.00014246,2]
[346491282,1735007455004,-4560.51,0.00014246,2]
[346491284,1735007455013,-9665.26,0.00014246,2]
[346491286,1735007455023,-2582.87,0.00014246,2]
[346491288,1735007455031,-5208.16,0.00014246,2]
[346491290,1735007455040,-851.27,0.00014246,2]
[346491292,1735007455050,-508.44,0.00014246,2]
[346491294,1735007455059,-2449.11,0.00014246,2]
[346491296,1735007455068,-1405.55,0.00014246,2]
[346491298,1735007455077,-500.0,0.00014246,2]
[346491300,1735007455087,-2273.62,0.00014246,2]
[346491302,1735007455095,-2640.52,0.00014246,2]
[346491304,1735007455104,-3017.77,0.00014246,2]
[346491306,1735007455114,-500.0,0.00014246,2]
[346491308,1735007455123,-622.94,0.00014246,2]
[346491310,1735007455132,-2612.67,0.00014246,2]
[346491312,1735007455141,-2189.27,0.00014246,2]
[346491314,1735007455150,-941.44,0.00014246,2]